[Event "Colombia Tierra de Atletas-B 2020"]
[Site "Medellin"]
[Date "2020.12.15"]
[Round "8.5"]
[White "Pazos Gambarrotti, Plinio"]
[Black "Escobar Medina, Andres F"]
[Result "0-1"]
[ECO "A34"]
[WhiteElo "2109"]
[BlackElo "2249"]
[Annotator "ChessBase"]
[PlyCount "82"]
[EventDate "2020.12.10"]
[EventType "tourn"]
[EventCountry "COL"]
[SourceTitle "playchess.com"]
[Source "ChessBase"]
[SourceQuality "1"]
[TimeControl "40/5400+30:1800+30"]

1. Nf3 {[%emt 0:00:00]} Nf6 {[%emt 0:04:16]} 2. g3 {[%emt 0:00:00]} c5 {[%emt 0:00:28]} 3. Bg2 {[%emt 0:00:00]} Nc6 {[%emt 0:00:06]} 4. O-O {[%emt 0:00:14]} g6 {[%emt 0:04:22]} 5. c4 {[%emt 0:00:59]} Bg7 {[%emt 0:00:14]} 6. Nc3 {[%emt 0:00:24]} O-O {[%emt 0:00:07]} 7. a3 {[%emt 0:01:19]} d5 {[%emt 0:02:15]} 8. cxd5 {[%emt 0:02:11]} Nxd5 {[%emt 0:00:07]} 9. Qc2 {[%emt 0:00:20]} Nxc3 {[%emt 0:17:25]} 10. bxc3 {[%emt 0:02:24]} Bf5 {[%emt 0:03:38]} 11. e4 {[%emt 0:02:44]} Be6 {[%emt 0:00:39]} 12. d3 {[%emt 0:00:32]} Qa5 {[%emt 0:01:24]} 13. Bd2 {[%emt 0:00:55]} Qa6 {[%emt 0:05:07]} 14. Ng5 {[%emt 0:03:09]} Bd7 {[%emt 0:00:08]} 15. Be3 {[%emt 0:00:36]} b6 {[%emt 0:03:24]} 16. f4 {[%emt 0:01:59]} Rac8 {[%emt 0:01:19]} 17. e5 {[%emt 0:04:47]} Nd4 {[%emt 0:04:44]} 18. cxd4 {[%emt 0:00:47]} cxd4 {[%emt 0:00:03]} 19. Qf2 {[%emt 0:00:13]} dxe3 {[%emt 0:00:04]} 20. Qxe3 {[%emt 0:00:06]} Rc3 {[%emt 0:03:56]} 21. Rad1 {[%emt 0:00:11]} Bf5 {[%emt 0:08:09]} 22. Be4 {[%emt 0:01:28]} Bxe4 {[%emt 0:00:07]} 23. Qxe4 {[%emt 0:00:28]} e6 {[%emt 0:03:44]} 24. g4 {[%emt 0:00:48]} Bh6 {[%emt 0:20:13]} 25. Qd4 {[%emt 0:02:01]} Rxa3 {[%emt 0:05:43]} 26. Ne4 {[%emt 0:00:31]} Qa4 {[%emt 0:00:09]} 27. Qf2 {[%emt 0:00:55]} Bg7 {[%emt 0:01:41]} 28. d4 {[%emt 0:03:23]} Ra2 {[%emt 0:03:25]} 29. Qh4 {[%emt 0:00:19]} Qc6 {[%emt 0:00:54]} 30. Rfe1 {[%emt 0:04:31]} Qd5 {[%emt 0:01:56]} 31. Qg3 {[%emt 0:00:37]} Rc8 {[%emt 0:00:04]} 32. Nf2 {[%emt 0:02:46]} Rcc2 {[%emt 0:00:26]} 33. Rf1 {[%emt 0:00:06]} b5 {[%emt 0:00:36]} 34. f5 {[%emt 0:00:09]} b4 {[%emt 0:00:15]} 35. Qe3 {[%emt 0:01:33]} a5 {[%emt 0:01:15]} 36. Rc1 {[%emt 0:00:12]} b3 {[%emt 0:01:28]} 37. Rxc2 {[%emt 0:00:24]} Rxc2 {[%emt 0:00:02]} 38. fxe6 {[%emt 0:00:15]} Qxe6 {[%emt 0:02:18]} 39. Qe4 {[%emt 0:00:14]} Rc4 {[%emt 0:02:04]} 40. Nd3 {[%emt 0:00:00]} Qb6 {[%emt 0:00:00]} 41. Nc5 {[%emt 0:01:47]} Qxc5 {[%emt 0:00:23]} 0-1